bitfinex-derivatives/quotes_BTCF0:USTF0_20251108
["timestamp","ask_amount","ask_price","bid_price","bid_amount"]
[1762611613710,0.09863412,101580.0,101570.0,0.1379168]
[1762611613911,0.09863412,101580.0,101570.0,0.28665601]
[1762611614113,0.15720412,101580.0,101570.0,0.28665601]
[1762611615417,0.15720412,101580.0,101570.0,0.28865601]
[1762611615617,0.15720412,101580.0,101570.0,0.29165601]
[1762611616414,0.00014702,101580.0,101570.0,0.29165601]
[1762611616811,0.09863412,101580.0,101570.0,0.29165601]
[1762611617117,0.15720412,101580.0,101570.0,0.29165601]
[1762611617318,0.05871702,101580.0,101570.0,0.65245601]
[1762611617507,0.00014702,101580.0,101570.0,0.65245601]
[1762611617912,0.00014702,101580.0,101570.0,0.67898263]
[1762611619312,0.00014702,101580.0,101570.0,0.53024342]
[1762611619524,0.15720412,101580.0,101570.0,0.67898263]
[1762611619821,0.15720412,101580.0,101570.0,0.65245601]
[1762611620512,0.15720412,101580.0,101570.0,0.29165601]
[1762611621912,0.05871702,101580.0,101570.0,0.67898263]
[1762611622118,0.15720412,101580.0,101570.0,0.67898263]
[1762611622319,0.15720412,101580.0,101570.0,0.65245601]
[1762611622819,0.05871702,101580.0,101570.0,0.67898263]
[1762611624312,0.15720412,101580.0,101570.0,0.67898263]
[1762611624712,0.05871702,101580.0,101570.0,0.67898263]
[1762611625522,0.00014702,101580.0,101570.0,0.67898263]
[1762611625722,0.00014702,101580.0,101570.0,0.71432813]
[1762611627121,0.00014702,101580.0,101570.0,0.93392151]
[1762611627321,0.41943,101600.0,101590.0,0.03912]
[1762611627519,0.41943,101600.0,101590.0,0.28633651]
[1762611627723,0.52772541,101600.0,101590.0,0.31286177]
[1762611628130,0.03564,101600.0,101590.0,0.31286177]
[1762611628813,0.03664,101600.0,101590.0,0.31386177]
[1762611629015,0.001,101600.0,101590.0,0.67466177]
[1762611629215,0.001,101600.0,101590.0,0.71000727]
[1762611629414,0.00014702,101610.0,101600.0,0.1456593]
[1762611629617,0.00014702,101610.0,101600.0,0.83930023]
[1762611629821,0.00014702,101610.0,101600.0,0.54182181]
[1762611630030,0.00014702,101610.0,101600.0,0.69056102]
[1762611631028,0.00214702,101610.0,101600.0,0.69056102]
[1762611631229,0.37365,101640.0,101630.0,0.01856]
[1762611631429,0.41865,101640.0,101630.0,0.18585921]
[1762611631726,0.26742886,101640.0,101630.0,0.18585921]
[1762611632029,0.62822886,101640.0,101630.0,0.03712]
[1762611632533,0.62922886,101640.0,101630.0,0.1355605]
[1762611632724,0.26842886,101640.0,101630.0,0.28429971]
[1762611633122,0.16999806,101640.0,101630.0,0.28429971]
[1762611633432,0.16999806,101640.0,101630.0,0.1355605]
[1762611633830,0.62922886,101640.0,101630.0,0.03712]
[1762611634027,0.62822886,101640.0,101630.0,0.03712]
[1762611634229,0.62822886,101640.0,101630.0,0.03812]
[1762611634531,0.16899806,101640.0,101630.0,0.1365605]
[1762611636033,0.05785,101640.0,101630.0,0.38572715]
[1762611636434,0.41879702,101650.0,101640.0,0.1355508]
[1762611636634,0.41879702,101650.0,101640.0,0.38471745]
[1762611636833,0.52723205,101650.0,101640.0,0.38471745]
[1762611637335,0.16643205,101650.0,101640.0,0.38471745]
[1762611637535,0.05799702,101650.0,101640.0,0.1355508]
[1762611637735,0.05899702,101650.0,101640.0,0.38471745]
[1762611638030,0.05999702,101650.0,101640.0,0.38471745]
[1762611638835,0.15841822,101650.0,101640.0,0.38471745]
[1762611639033,0.15641822,101650.0,101640.0,0.38571745]
[1762611639233,0.15641822,101650.0,101640.0,0.1365508]
[1762611639442,0.16446064,101650.0,101640.0,0.74651745]
[1762611640436,0.12862064,101650.0,101640.0,0.74651745]
[1762611640644,0.00014702,101650.0,101640.0,0.5074208]
[1762611640834,0.00014702,101650.0,101640.0,0.75658745]
[1762611641137,0.15641822,101650.0,101640.0,0.39892]
[1762611641341,0.15641822,101650.0,101640.0,0.03812]
[1762611641640,0.15641822,101650.0,101640.0,0.1365509]
[1762611642541,0.15641822,101650.0,101640.0,0.03812]
[1762611642746,0.51721822,101650.0,101640.0,0.03812]
[1762611642937,0.62164344,101650.0,101640.0,0.01956]
[1762611643132,0.62164344,101650.0,101640.0,0.1365509]
[1762611643343,0.26084344,101650.0,101640.0,0.1365509]
[1762611643646,0.05799702,101650.0,101640.0,0.74651755]
[1762611643830,0.02215702,101650.0,101640.0,0.75658755]
[1762611644143,0.02315702,101650.0,101640.0,0.75658755]
[1762611644344,0.00114702,101650.0,101640.0,0.75558755]
[1762611644539,0.00214702,101650.0,101640.0,0.75558755]
[1762611644735,0.00214702,101650.0,101640.0,0.90518755]
[1762611645133,0.02226702,101650.0,101640.0,0.90618755]
[1762611645441,0.00014702,101650.0,101640.0,0.90618755]
[1762611645640,0.00014702,101650.0,101640.0,0.90518755]
[1762611645846,0.00014702,101650.0,101640.0,0.90718755]
[1762611646441,0.00014702,101650.0,101640.0,1.15314755]
[1762611647041,0.00014702,101650.0,101640.0,0.90718755]
[1762611647438,0.00014702,101650.0,101640.0,1.18164635]
[1762611647849,0.02289169,101670.0,101660.0,0.38469825]
[1762611647850,0.05561,101670.0,101660.0,0.38469825]
[1762611648046,0.05561,101670.0,101660.0,0.74549825]
[1762611648349,0.05561,101670.0,101660.0,0.75398825]
[1762611648538,0.05561,101680.0,101670.0,0.1355219]
[1762611648738,0.05561,101680.0,101670.0,0.38468855]
[1762611648939,0.16814874,101680.0,101670.0,0.1355219]
[1762611649145,0.37381702,101690.0,101680.0,0.0983922]
[1762611649443,0.41657702,101690.0,101680.0,0.38467885]
[1762611649633,0.04276,101680.0,101670.0,0.4777614]
[1762611649838,0.05563,101680.0,101670.0,0.74548805]
[1762611650240,0.01301702,101690.0,101680.0,0.0983922]
[1762611650440,0.05577702,101690.0,101680.0,0.4963122]
[1762611650648,0.15415952,101690.0,101680.0,0.1355122]
[1762611650945,0.15815952,101690.0,101680.0,0.1365122]
[1762611651547,0.16015952,101690.0,101680.0,0.03812]
[1762611651739,0.15915952,101690.0,101680.0,0.1355122]
[1762611652637,0.15915952,101690.0,101680.0,0.03712]
[1762611653041,0.51995952,101690.0,101680.0,0.03712]
[1762611653951,0.1540222,101680.0,101670.0,0.03712]
[1762611654141,0.1540222,101680.0,101670.0,0.4963218]
[1762611655046,0.1550222,101680.0,101670.0,0.4963218]
[1762611655244,0.1560222,101680.0,101670.0,0.4963218]
[1762611658050,0.1560222,101680.0,101670.0,0.74548845]
[1762611658749,0.1560222,101680.0,101670.0,0.64708665]
[1762611658949,0.1560222,101680.0,101670.0,0.1355219]
[1762611659553,0.1560222,101680.0,101670.0,0.2851219]
[1762611660249,0.62557985,101680.0,101670.0,0.1496]
[1762611660453,0.1567119,101670.0,101660.0,0.00014702]
[1762611660658,0.1567312,101650.0,101640.0,0.28628665]
[1762611660847,0.1567312,101650.0,101640.0,0.01856]
[1762611660848,0.5175312,101650.0,101640.0,0.01856]
[1762611661159,0.62236673,101650.0,101640.0,0.1169909]
[1762611661353,0.62236673,101650.0,101640.0,0.1355509]
[1762611661748,0.16314553,101650.0,101640.0,0.1355509]
[1762611662056,0.16314553,101650.0,101640.0,0.1385509]
[1762611662248,0.05831,101650.0,101640.0,0.1385509]
[1762611662448,0.63048382,101650.0,101640.0,0.02156]
[1762611662650,0.63048382,101650.0,101640.0,0.1385509]
[1762611663153,0.63048382,101650.0,101640.0,0.1365509]
[1762611663344,0.17126262,101650.0,101640.0,0.1365509]
[1762611663549,0.26968382,101650.0,101640.0,0.1395509]
[1762611664059,0.26968382,101650.0,101640.0,0.5003509]
[1762611664259,0.26968382,101650.0,101640.0,0.4973509]
[1762611664460,0.26968382,101650.0,101640.0,0.03812]
[1762611664663,0.26968382,101650.0,101640.0,0.1365509]
[1762611664850,0.63048382,101650.0,101640.0,0.03812]
[1762611665051,0.63048382,101650.0,101640.0,0.001]
[1762611666862,0.1567409,101640.0,101630.0,0.00014702]
[1762611667061,0.5175409,101640.0,101630.0,0.09858762]
[1762611667261,0.27002826,101640.0,101630.0,0.11714762]
[1762611667561,0.27002826,101640.0,101630.0,0.13570762]
[1762611668260,0.63082826,101640.0,101630.0,0.13570762]
[1762611668458,0.27002826,101640.0,101630.0,0.13570762]
[1762611668969,0.17159736,101640.0,101630.0,0.49750762]
[1762611669158,0.05831,101640.0,101630.0,0.49750762]
[1762611670461,0.05831,101640.0,101630.0,0.52400642]
[1762611671656,0.156741,101640.0,101630.0,0.52400642]
[1762611671854,0.156741,101640.0,101630.0,0.77317307]
[1762611672065,0.05831,101640.0,101630.0,0.77317307]
[1762611672266,0.156741,101640.0,101630.0,0.77317307]
[1762611672767,0.156741,101640.0,101630.0,0.38587427]
[1762611673163,0.156741,101640.0,101630.0,0.41237307]
[1762611673468,0.05831,101640.0,101630.0,0.77317307]
[1762611676357,0.05831,101650.0,101640.0,0.135551]
[1762611676771,0.17186192,101650.0,101640.0,0.496351]
[1762611677471,0.51767492,101660.0,101650.0,0.1355413]
[1762611677666,0.51767492,101660.0,101650.0,0.38470795]
[1762611678062,0.41925702,101660.0,101650.0,0.38470795]
[1762611678770,0.00014702,101660.0,101650.0,0.90359795]
[1762611679067,0.00014702,101660.0,101650.0,0.78049675]
[1762611679659,0.00214702,101660.0,101650.0,0.78049675]
[1762611679864,0.1116883,101670.0,101660.0,0.04457]
[1762611680171,0.1534316,101660.0,101650.0,0.30739665]
[1762611680574,0.5142316,101660.0,101650.0,0.30739665]
[1762611680770,0.1434416,101660.0,101650.0,0.40581795]
[1762611680974,0.50438292,101670.0,101660.0,0.0583]
[1762611681366,0.62462359,101670.0,101660.0,0.0583]
[1762611682473,0.26382359,101670.0,101660.0,0.0583]
[1762611682681,0.62462359,101670.0,101660.0,0.0593]
[1762611683178,0.62462359,101670.0,101660.0,0.1577116]
[1762611683774,0.52621769,101670.0,101660.0,0.1577116]
[1762611683982,0.62461969,101670.0,101660.0,0.1577116]
[1762611684174,0.62461969,101670.0,101660.0,0.0603]
[1762611684368,0.52621769,101670.0,101660.0,0.1587116]
[1762611684878,0.62461969,101670.0,101660.0,0.0603]
[1762611685080,0.62461969,101670.0,101660.0,0.1587116]
[1762611685976,0.52621769,101670.0,101660.0,0.1587116]
[1762611686178,0.15542769,101670.0,101660.0,0.1587116]
[1762611686778,0.15542769,101670.0,101660.0,0.40787825]
[1762611687077,0.00014702,101670.0,101660.0,0.43437705]
[1762611687387,0.3608,101690.0,101680.0,0.1539923]
[1762611687578,0.42926411,101700.0,101690.0,0.1539826]
[1762611687788,0.52763701,101700.0,101690.0,0.1539826]
[1762611688086,0.63988569,101700.0,101690.0,0.1539826]
[1762611688282,0.54151279,101700.0,101690.0,0.1539826]
[1762611688488,0.63988569,101700.0,101690.0,0.1539826]
[1762611688788,0.54151279,101700.0,101690.0,0.1539826]
[1762611689277,0.64088569,101700.0,101690.0,0.0556]
[1762611689485,0.64088569,101700.0,101690.0,0.1539826]
[1762611690584,0.64088569,101700.0,101690.0,0.0556]
[1762611690792,0.64288569,101700.0,101690.0,0.04264]
[1762611691083,0.1212926,101690.0,101680.0,0.11149262]
[1762611691283,0.1547626,101690.0,101680.0,0.15413262]
[1762611691485,0.26638143,101690.0,101680.0,0.15413262]
[1762611692084,0.26638143,101690.0,101680.0,0.14117932]
[1762611692580,0.26638143,101690.0,101680.0,0.15413932]
[1762611693085,0.26738143,101690.0,101680.0,0.15413932]
[1762611693481,0.16899883,101690.0,101680.0,0.15413932]
[1762611693988,0.26738143,101690.0,101680.0,0.15413932]
[1762611694189,0.26738143,101690.0,101680.0,0.40330597]
[1762611694386,0.26738143,101690.0,101680.0,0.30262995]
[1762611698285,0.26738143,101690.0,101680.0,0.39173196]
[1762611698480,0.25614143,101690.0,101680.0,0.39173196]
[1762611699795,0.26738143,101690.0,101680.0,0.39173196]
[1762611700789,0.25614143,101690.0,101680.0,0.39173196]
[1762611701185,0.26738143,101690.0,101680.0,0.39173196]
[1762611702681,0.25614143,101690.0,101680.0,0.39173196]
[1762611704195,0.25614153,101690.0,101680.0,0.41820865]
[1762611705385,0.25614153,101690.0,101680.0,0.31981635]
[1762611706094,0.26738153,101690.0,101680.0,0.31981635]
[1762611706290,0.25614153,101690.0,101680.0,0.31981635]
[1762611706596,0.25614153,101690.0,101680.0,0.41820875]
[1762611707897,0.25614153,101690.0,101680.0,0.31981635]
[1762611709097,0.25614153,101690.0,101680.0,0.41820865]
[1762611710200,0.26752153,101690.0,101680.0,0.41820865]
[1762611710388,0.25614153,101690.0,101680.0,0.41820865]
[1762611710699,0.26752153,101690.0,101680.0,0.41820865]
[1762611710895,0.25614153,101690.0,101680.0,0.41820865]
[1762611711294,0.25614153,101690.0,101680.0,0.39173196]
[1762611712798,0.25614153,101690.0,101680.0,0.41823755]
[1762611714000,0.25614153,101690.0,101680.0,0.31984525]
[1762611714597,0.25614153,101690.0,101680.0,0.41823755]
[1762611714802,0.25614153,101690.0,101680.0,0.31984525]
[1762611715099,0.78221253,101690.0,101670.0,0.03536251]
[1762611715401,0.142432,101670.0,101660.0,0.17659893]
[1762611715601,0.503232,101670.0,101660.0,0.17659893]
[1762611715902,0.61056522,101670.0,101660.0,0.17659893]
[1762611716090,0.61056522,101670.0,101660.0,0.16377893]
[1762611716287,0.1557216,101660.0,101650.0,0.11894334]
[1762611716500,0.5165216,101660.0,101650.0,0.14099334]
[1762611716702,0.62821189,101660.0,101650.0,0.16392334]
[1762611718398,0.62821189,101660.0,101650.0,0.17674334]
[1762611718900,0.62821189,101660.0,101650.0,0.17774334]
[1762611718901,0.62921189,101660.0,101650.0,0.17774334]
[1762611719494,0.62921189,101660.0,101650.0,0.17674334]
[1762611720301,0.62921189,101660.0,101650.0,0.27516464]
[1762611720302,0.61593189,101660.0,101650.0,0.27516464]
[1762611720503,0.61593189,101660.0,101650.0,0.17674334]
[1762611720694,0.61593189,101660.0,101650.0,0.27516464]
[1762611721202,0.098431,101640.0,101630.0,0.03487]
[1762611721393,0.93882732,101640.0,101630.0,0.03487]
[1762611721592,0.92261142,101640.0,101630.0,0.17659632]
[1762611722201,0.56181142,101640.0,101630.0,0.17659632]
[1762611722402,0.56181142,101640.0,101630.0,0.17759632]
[1762611722891,0.56181142,101640.0,101630.0,0.1572406]
[1762611722892,0.20101142,101640.0,101630.0,0.1572406]
[1762611723093,0.20101142,101640.0,101630.0,0.27603692]
[1762611723801,0.10258042,101640.0,101630.0,0.63683692]
[1762611724104,0.45937312,101650.0,101640.0,0.1562309]
[1762611724302,0.45937312,101650.0,101640.0,0.39382354]
[1762611724503,0.45937312,101650.0,101640.0,0.29539264]
[1762611724706,0.09857312,101650.0,101640.0,0.29539264]
[1762611724904,0.45937312,101650.0,101640.0,0.29539264]
[1762611725406,0.09857312,101650.0,101640.0,0.29539264]
[1762611725600,0.45937312,101650.0,101640.0,0.29539264]
[1762611725800,0.45937312,101650.0,101640.0,0.29639264]
[1762611726303,0.45937312,101650.0,101640.0,0.0588]
[1762611726501,0.68277802,101650.0,101640.0,0.0598]
[1762611726700,0.5639817,101650.0,101640.0,0.17859632]
[1762611727209,0.45937312,101650.0,101640.0,0.29739264]
[1762611727606,0.568412,101650.0,101640.0,0.17859632]
[1762611728109,0.568412,101650.0,101640.0,0.29739264]
[1762611728307,0.569412,101650.0,101640.0,0.29639264]
[1762611729109,0.569412,101650.0,101640.0,0.29539264]
[1762611729310,0.46037312,101650.0,101640.0,0.39382364]
[1762611729703,0.09957312,101650.0,101640.0,0.39382364]
[1762611730311,0.00114702,101650.0,101640.0,0.39482364]
[1762611730614,0.09956832,101650.0,101640.0,0.39482364]
[1762611731206,0.00114702,101650.0,101640.0,0.39482364]
[1762611731712,0.4592056,101670.0,101660.0,0.0578]
[1762611731909,0.4592008,101680.0,101670.0,0.02205]
[1762611732099,0.4592008,101680.0,101670.0,0.17659632]
[1762611732301,0.56489451,101680.0,101670.0,0.17659632]
[1762611732705,0.56489451,101680.0,101670.0,0.01282]
[1762611732906,0.56489451,101680.0,101670.0,0.0578]
[1762611733309,0.56489451,101680.0,101670.0,0.17659632]
[1762611735319,0.56489451,101680.0,101670.0,0.17759632]
[1762611735909,0.56489451,101680.0,101670.0,0.27599822]
[1762611736119,0.56489451,101680.0,101670.0,0.27699822]
[1762611736416,0.56489451,101680.0,101670.0,0.17859632]
[1762611736614,0.10569371,101680.0,101670.0,0.39579454]
[1762611736814,0.45933662,101690.0,101680.0,0.1561923]
[1762611737118,0.47511495,101690.0,101680.0,0.39378494]
[1762611737308,0.57349755,101690.0,101680.0,0.39378494]
[1762611737614,0.47511495,101690.0,101680.0,0.39378494]
[1762611738418,0.57349755,101690.0,101680.0,0.0578]
[1762611738620,0.57349755,101690.0,101680.0,0.29539264]
[1762611738816,0.57349755,101690.0,101680.0,0.17659632]
[1762611739017,0.57449755,101690.0,101680.0,0.17659632]
[1762611739413,0.57449755,101690.0,101680.0,0.29539264]
[1762611740113,0.57449755,101690.0,101680.0,0.39378494]
[1762611740515,0.57449755,101690.0,101680.0,0.29539264]
[1762611741411,0.57449755,101690.0,101680.0,0.39378494]
[1762611741613,0.57449755,101690.0,101680.0,0.29539264]
[1762611743225,0.57449755,101690.0,101680.0,0.17659632]
[1762611743525,0.69329387,101690.0,101680.0,0.03487]
[1762611743720,0.57449755,101690.0,101680.0,0.03487]
[1762611743915,0.69329387,101690.0,101680.0,0.01282]
[1762611746120,0.69329387,101690.0,101680.0,0.17488632]
[1762611746121,0.57449755,101690.0,101680.0,0.17488632]
[1762611746321,0.57449755,101690.0,101680.0,0.05609]
[1762611747818,0.57449755,101690.0,101680.0,0.01282]
[1762611749116,0.57449755,101690.0,101680.0,0.0341]
[1762611749624,0.57449755,101690.0,101680.0,0.05532]
[1762611752225,0.57449755,101690.0,101680.0,0.30224849]
[1762611753630,0.21369755,101690.0,101680.0,0.30224849]
[1762611754430,0.21369755,101690.0,101680.0,0.1537123]
[1762611754624,0.21369755,101690.0,101680.0,0.5145123]
[1762611755231,0.11531495,101690.0,101680.0,0.5145123]
[1762611755935,0.00114702,101690.0,101680.0,0.5145123]
[1762611756232,0.09952962,101690.0,101680.0,0.5145123]
[1762611756434,0.00114702,101690.0,101680.0,0.5145123]
[1762611756731,0.00114702,101690.0,101680.0,0.79879265]
[1762611756927,0.00114702,101690.0,101680.0,1.04463265]
[1762611757435,0.00114702,101690.0,101680.0,0.79879265]
[1762611757930,0.00114702,101690.0,101680.0,1.04463265]
[1762611758135,0.46882525,101710.0,101700.0,0.05553]
[1762611758538,0.57526086,101710.0,101700.0,0.1539029]
[1762611759131,0.56559891,101710.0,101700.0,0.1539029]
[1762611759338,0.20779891,101710.0,101700.0,0.1539029]
[1762611759835,0.21079891,101710.0,101700.0,0.40282074]
[1762611760037,0.11243561,101710.0,101700.0,0.40282074]
[1762611760239,0.21079891,101710.0,101700.0,0.40282074]
[1762611760534,0.11243561,101710.0,101700.0,0.76362074]
[1762611760738,0.006,101710.0,101700.0,0.76362074]
[1762611760935,0.006,101710.0,101700.0,1.00942074]
[1762611761137,0.006,101710.0,101700.0,0.76362074]
[1762611761933,0.006,101710.0,101700.0,0.79898325]
[1762611762140,0.1043633,101710.0,101700.0,0.79898325]
[1762611762337,0.1043633,101710.0,101700.0,0.76362074]
[1762611762638,0.006,101710.0,101700.0,0.76362074]
[1762611763037,0.006,101710.0,101700.0,0.79898325]
[1762611763744,0.006,101710.0,101700.0,0.76362074]
[1762611764931,0.00014702,101720.0,101710.0,0.1582533]
[1762611765132,0.00014702,101720.0,101710.0,0.76797114]
[1762611766735,0.00414702,101720.0,101710.0,0.76797114]
[1762611767044,0.10250062,101720.0,101710.0,0.76797114]
[1762611767238,0.00414702,101720.0,101710.0,0.76797114]
[1762611767440,0.00814702,101720.0,101710.0,0.76797114]
[1762611767941,0.10650062,101720.0,101710.0,0.91757114]
[1762611768141,0.00814702,101720.0,101710.0,0.91757114]
[1762611768343,0.00814702,101720.0,101710.0,0.78734542]
[1762611769444,0.0983488,101730.0,101720.0,0.1582436]
[1762611769639,0.0983488,101730.0,101720.0,0.63773572]
[1762611770042,0.0983488,101730.0,101720.0,0.78733572]
[1762611770845,0.1073488,101730.0,101720.0,0.78833572]
[1762611771849,0.009,101730.0,101720.0,0.78833572]
[1762611772147,0.1073439,101730.0,101720.0,0.78833572]
[1762611772538,0.009,101730.0,101720.0,0.78833572]
[1762611773239,0.1073439,101730.0,101720.0,0.78833572]
[1762611773440,0.009,101730.0,101720.0,0.78833572]
[1762611773746,0.009,101730.0,101720.0,0.90702784]
[1762611774047,0.009,101730.0,101720.0,0.78833572]
[1762611774251,0.009,101730.0,101720.0,0.90702784]
[1762611774634,0.09843934,101740.0,101730.0,0.1582339]
[1762611774833,0.09843934,101740.0,101730.0,0.90601814]
[1762611775042,0.09843934,101740.0,101730.0,0.57029]
[1762611775242,0.09843934,101740.0,101730.0,0.68898212]
[1762611775444,0.09843934,101740.0,101730.0,0.78732602]
[1762611775747,0.10343934,101740.0,101730.0,0.78832602]
[1762611776150,0.10343934,101740.0,101730.0,0.90701814]
[1762611776835,0.10643934,101740.0,101730.0,0.90701814]
[1762611777341,0.00809804,101740.0,101730.0,0.90701814]
[1762611780134,0.00809804,101740.0,101730.0,0.75741814]
[1762611780348,0.10643234,101740.0,101730.0,0.75741814]
[1762611780548,0.00809804,101740.0,101730.0,0.75741814]
[1762611781253,0.00809804,101740.0,101730.0,1.00313814]
[1762611781547,0.10643234,101740.0,101730.0,0.75741814]
[1762611782339,0.46909609,101760.0,101750.0,0.0585]
[1762611782547,0.46909609,101760.0,101750.0,0.17719212]
[1762611782748,0.21979899,101760.0,101750.0,0.27551672]
[1762611783647,0.2098224,101760.0,101750.0,0.27551672]
[1762611783845,0.21947965,101760.0,101750.0,0.17719212]
[1762611784047,0.2098224,101760.0,101750.0,0.17719212]
[1762611785054,0.5706224,101760.0,101750.0,0.17719212]
[1762611785350,0.58061967,101760.0,101750.0,0.17719212]
[1762611785759,0.58361967,101760.0,101750.0,0.17719212]
[1762611785947,0.68194277,101760.0,101740.0,0.05864702]
[1762611786147,0.4591246,101750.0,101740.0,0.05864702]
[1762611786656,1.16416568,101750.0,101740.0,0.00014702]
[1762611786840,1.16416568,101750.0,101710.0,0.17719212]
[1762611786841,0.0983536,101720.0,101710.0,0.17719212]
[1762611787044,0.0983501,101730.0,101720.0,0.0585]
[1762611787552,0.56674316,101730.0,101720.0,0.17719212]
[1762611788641,0.20594316,101730.0,101720.0,0.27554582]
[1762611788850,0.56674316,101730.0,101720.0,0.27754582]
[1762611789151,0.20594316,101730.0,101720.0,0.27754582]
[1762611789547,0.10759306,101730.0,101720.0,0.27754582]
[1762611789748,0.10759306,101730.0,101720.0,0.28054582]
[1762611790145,0.00014702,101740.0,101730.0,0.156844]
[1762611790351,0.00014702,101740.0,101730.0,0.63633612]
[1762611790756,0.00014702,101740.0,101730.0,0.75502824]
[1762611791148,0.00014702,101740.0,101730.0,0.78148724]
[1762611791350,0.00014702,101740.0,101730.0,0.81684975]
[1762611792356,0.00014702,101740.0,101730.0,0.82807922]
[1762611793149,0.09848132,101740.0,101730.0,0.72973522]
[1762611793353,0.21218124,101740.0,101730.0,0.445759]
[1762611793857,0.21218124,101740.0,101730.0,0.5461029]
[1762611794358,0.21218124,101740.0,101730.0,0.5471029]
[1762611794557,0.21218124,101740.0,101730.0,0.5531029]
[1762611794760,0.21218124,101740.0,101730.0,0.454759]
[1762611795057,0.21218124,101740.0,101730.0,0.448759]
[1762611795253,0.21218124,101740.0,101730.0,0.5531029]
[1762611795652,0.11384694,101740.0,101730.0,0.5531029]
[1762611795849,0.11384694,101740.0,101730.0,0.58846541]
[1762611796266,0.4591323,101750.0,101740.0,0.1568343]
[1762611796564,0.4591323,101750.0,101740.0,0.40544801]
[1762611796953,0.0983323,101750.0,101740.0,0.76624801]
[1762611797262,0.0983323,101750.0,101740.0,0.79270701]
[1762611797446,0.0983323,101750.0,101740.0,0.79870701]
[1762611797962,0.46911647,101760.0,101750.0,0.0585]
[1762611798261,0.4665448,101760.0,101750.0,0.0585]
[1762611798562,0.4591065,101770.0,101760.0,0.1568149]
[1762611798764,0.4591053,101770.0,101760.0,0.08498222]
[1762611798956,0.5648501,101770.0,101760.0,0.0585]
[1762611799556,0.5648501,101770.0,101760.0,0.01382]
[1762611799964,0.5648501,101770.0,101760.0,0.0585]
[1762611800259,0.57470893,101770.0,101760.0,0.01382]
[1762611800861,0.0983149,101760.0,101750.0,0.06264702]
[1762611801061,0.4591149,101760.0,101750.0,0.06164702]
[1762611801262,0.56635774,101760.0,101750.0,0.05864702]
[1762611801466,0.56635774,101760.0,101750.0,0.01396702]
[1762611801668,0.56635774,101760.0,101750.0,0.03587702]
[1762611801866,0.20555774,101760.0,101750.0,0.15697162]
[1762611802054,0.0983149,101760.0,101750.0,0.08513136]
[1762611802260,0.56350334,101760.0,101750.0,0.05864702]
[1762611802454,0.20270334,101760.0,101750.0,0.15697162]
[1762611802959,0.56350334,101760.0,101750.0,0.05864702]
[1762611803360,0.56350334,101760.0,101750.0,0.15697162]
[1762611803561,0.20270334,101760.0,101750.0,0.15697162]
[1762611803867,0.20270334,101760.0,101750.0,0.15997162]
[1762611804373,0.20270334,101760.0,101750.0,0.18745596]
[1762611805472,0.20270334,101760.0,101750.0,0.43606967]
[1762611805679,0.10438844,101760.0,101750.0,0.43606967]
[1762611805976,0.4591115,101770.0,101760.0,0.1567049]
[1762611806158,0.0983115,101770.0,101760.0,0.5175049]
[1762611806358,0.10903458,101770.0,101760.0,0.5175049]
[1762611806768,0.10903458,101770.0,101760.0,0.54398924]
[1762611806973,0.08542833,101770.0,101760.0,0.5175049]
[1762611807172,0.08542833,101770.0,101760.0,0.54398924]
[1762611807374,0.08542833,101770.0,101760.0,0.54598924]
[1762611808064,0.18373363,101770.0,101760.0,0.54598924]
[1762611808670,0.0983053,101770.0,101760.0,0.54598924]
[1762611808870,0.0983053,101770.0,101760.0,0.44767434]
[1762611809173,0.0983053,101770.0,101760.0,0.54598934]
[1762611809375,0.4691416,101780.0,101770.0,0.05762]
[1762611809760,0.57940819,101780.0,101770.0,0.05762]
[1762611809964,0.57940819,101780.0,101770.0,0.1559253]
[1762611810166,0.57940819,101780.0,101770.0,0.30623371]
[1762611810366,0.21860819,101780.0,101770.0,0.40453901]
[1762611810560,0.21860819,101780.0,101770.0,0.30723371]
[1762611810771,0.21960819,101780.0,101770.0,0.30723371]
[1762611810972,0.58040819,101780.0,101770.0,0.30723371]
[1762611811275,0.21960819,101780.0,101770.0,0.30723371]
[1762611811473,0.21960819,101780.0,101770.0,0.40553901]
[1762611811777,0.21960819,101780.0,101770.0,0.76633901]
[1762611811778,0.001,101780.0,101770.0,0.76633901]
[1762611811967,0.100306,101790.0,101780.0,0.05762]
[1762611812174,0.4611042,101800.0,101790.0,0.05762]
[1762611812477,0.5637357,101800.0,101790.0,0.30623371]
[1762611813275,0.57372051,101800.0,101790.0,0.30623371]
[1762611813468,0.57372051,101800.0,101790.0,0.05762]
[1762611815263,0.57372051,101800.0,101790.0,0.002]
[1762611816371,0.57271051,101800.0,101790.0,0.05962]
[1762611816571,0.57371261,101800.0,101790.0,0.20786012]
[1762611816766,0.57371261,101800.0,101790.0,0.05962]
[1762611816972,0.57371261,101800.0,101790.0,0.01567]
[1762611817768,0.57371261,101800.0,101790.0,0.05962]
[1762611817978,0.57371261,101800.0,101790.0,0.03681]
[1762611818178,0.57371261,101800.0,101790.0,0.01567]
[1762611819772,0.57371261,101800.0,101790.0,0.03681]
[1762611820084,0.57371261,101800.0,101790.0,0.003]
[1762611820374,0.57371261,101800.0,101790.0,0.03881]
[1762611820581,0.57371261,101800.0,101790.0,0.06162]
[1762611822176,0.57371261,101800.0,101790.0,0.1599061]
[1762611822376,0.47543631,101800.0,101790.0,0.30814622]
[1762611822579,0.45183437,101800.0,101790.0,0.30814622]
[1762611822775,0.44184956,101800.0,101790.0,0.30814622]
[1762611822975,0.44083956,101800.0,101790.0,0.30814622]
[1762611823176,0.1036415,101800.0,101790.0,0.30814622]
[1762611823384,0.4610922,101810.0,101800.0,0.1562264]
[1762611823582,0.4610922,101810.0,101800.0,0.30446652]
[1762611823777,0.56546781,101810.0,101800.0,0.30446652]
[1762611825084,0.56546781,101810.0,101800.0,0.30646652]
[1762611825085,0.57512941,101810.0,101800.0,0.30646652]
[1762611825274,0.57310941,101810.0,101800.0,0.30646652]
[1762611825478,0.57512941,101810.0,101800.0,0.30646652]
[1762611825677,0.57512941,101810.0,101800.0,0.1662264]
[1762611825881,0.57512941,101810.0,101800.0,0.21619012]
[1762611826179,0.57512941,101810.0,101800.0,0.67526652]
[1762611826180,0.10639561,101810.0,101800.0,0.67526652]
[1762611826590,0.20466241,101810.0,101800.0,0.67526652]
[1762611826790,0.21431011,101810.0,101800.0,0.57699012]
[1762611827178,0.21431011,101810.0,101800.0,0.67526652]
[1762611827382,0.21431011,101810.0,101800.0,0.06795]
[1762611827585,0.21330011,101810.0,101800.0,0.21619012]
[1762611827790,0.21431011,101810.0,101800.0,0.21619012]
[1762611828381,0.21431011,101810.0,101800.0,0.06795]
[1762611828586,0.57511011,101810.0,101800.0,0.21619012]
[1762611828793,0.21431011,101810.0,101800.0,0.31446652]
[1762611828986,0.21431011,101810.0,101800.0,0.67526652]
[1762611828987,0.21330011,101810.0,101800.0,0.67526652]
[1762611829187,0.11402331,101810.0,101800.0,0.67526652]
[1762611829488,0.21431011,101810.0,101800.0,0.21619012]
[1762611829679,0.21431011,101810.0,101800.0,0.06795]